fUSD/lending_fUSD_20250320
["ID","MTS","AMOUNT","RATE_DAILY","PERIOD"]
[356420145,1742431837669,-261.96518747,0.00027829,2]
[356420146,1742431837679,-500.0,0.00027829,2]
[356420147,1742431837691,-500.0,0.00027829,2]
[356420148,1742431837701,-199.75750572,0.00027829,2]
[356420149,1742431837710,-500.0,0.00027829,2]
[356420150,1742431837719,-500.0,0.00027829,2]
[356420151,1742431837729,-500.0,0.00027829,2]
[356420152,1742431837738,-500.0,0.00027829,2]
[356420153,1742431837747,-500.0,0.00027829,2]
[356420154,1742431837758,-500.0,0.00027829,2]
[356420155,1742431837768,-601.29477391,0.00027829,2]
[356420156,1742431837777,-500.0,0.00027829,2]
[356420157,1742431837786,-500.0,0.00027829,2]
[356420158,1742431837795,-500.0,0.00027829,2]
[356420159,1742431837804,-500.0,0.00027829,2]
[356420160,1742431837813,-500.0,0.00027829,2]
[356420161,1742431837823,-500.0,0.00027829,2]
[356420162,1742431837832,-500.0,0.00027829,2]
[356420163,1742431837841,-2720.8,0.00027829,2]
[356420164,1742431837851,-992.77,0.00027829,2]
[356420165,1742431837859,-578.37280022,0.00027829,2]
[356420166,1742431837869,-500.0,0.00027829,2]
[356420167,1742431837878,-570.62,0.00027829,2]
[356420168,1742431837887,-629.88,0.00027829,2]
[356420169,1742431837897,-500.0,0.00027829,2]
[356420170,1742431837906,-500.0,0.00027829,2]
[356420171,1742431837916,-619.04873325,0.00027829,2]
[356420172,1742431837925,-874.150545,0.00027829,2]
[356420173,1742431837934,-500.0,0.00027829,2]
[356420174,1742431837943,-1091.63,0.00027829,2]
[356420175,1742431837952,-500.0,0.00027829,2]
[356420176,1742431837962,-159.862839,0.00027829,2]
[356420177,1742431837971,-534.54,0.00027829,2]
[356420178,1742431837981,-500.0,0.00027829,2]
[356420179,1742431837990,-500.0,0.00027829,2]
[356420180,1742431837999,-500.0,0.00027829,2]
[356420182,1742431838009,-721.8,0.00027829,2]
[356420184,1742431838019,-715.79,0.00027829,2]
[356420186,1742431838029,-500.0,0.00027829,2]
[356420188,1742431838039,-1041.27,0.00027829,2]
[356420190,1742431838049,-500.0,0.00027829,2]
[356420191,1742431838059,-651.49,0.00027829,2]
[356420192,1742431838069,-500.0,0.00027829,2]
[356420193,1742431838137,-567.12,0.00027829,2]
[356420194,1742431838148,-500.0,0.00027829,2]
[356420195,1742431838158,-500.0,0.00027829,2]
[356420196,1742431838167,-500.0,0.00027829,2]
[356420197,1742431838177,-851.0,0.00027829,2]
[356420198,1742431838186,-799.81,0.00027829,2]
[356420199,1742431838196,-762.36,0.00027829,2]
[356420200,1742431838205,-1069.410702,0.00027829,2]
[356420201,1742431838215,-210.69839796,0.00027829,2]
[356420202,1742431838224,-502.59,0.00027829,2]
[356420203,1742431838233,-500.0,0.00027829,2]
[356420204,1742431838243,-500.0,0.00027829,2]
[356420205,1742431838252,-649.97,0.00027829,2]
[356420206,1742431838262,-500.0,0.00027829,2]
[356420207,1742431838271,-500.0,0.00027829,2]
[356420208,1742431838281,-746.37,0.00027829,2]
[356420209,1742431838290,-500.0,0.00027829,2]
[356420210,1742431838299,-500.0,0.00027829,2]
[356420211,1742431838309,-500.0,0.00027829,2]
[356420212,1742431838318,-646.83,0.00027829,2]
[356420213,1742431838328,-669.38,0.00027829,2]
[356420214,1742431838337,-647.38,0.00027829,2]
[356420215,1742431838347,-500.0,0.00027829,2]
[356420216,1742431838357,-651.84,0.00027829,2]
[356420217,1742431838366,-500.0,0.00027829,2]
[356420218,1742431838375,-529.8,0.00027829,2]
[356420219,1742431838384,-500.0,0.00027829,2]
[356420220,1742431838394,-500.0,0.00027829,2]
[356420221,1742431838405,-500.0,0.00027829,2]
[356420222,1742431838415,-616.28,0.00027829,2]
[356420223,1742431838424,-551.03,0.00027829,2]
[356420224,1742431838434,-529.08,0.00027829,2]
[356420225,1742431838443,-500.0,0.00027829,2]
[356420226,1742431838452,-342.67408517,0.00027829,2]
[356420227,1742431838462,-500.0,0.00027829,2]
[356420228,1742431838471,-500.0,0.00027829,2]
[356420229,1742431838480,-500.0,0.00027829,2]
[356420230,1742431838490,-803.85,0.00027829,2]
[356420231,1742431838499,-500.0,0.00027829,2]
[356420232,1742431838509,-500.0,0.00027829,2]
[356420233,1742431838519,-395.12950548,0.00027829,2]
[356420234,1742431838528,-665.86,0.00027829,2]
[356420235,1742431838538,-586.81,0.00027829,2]
[356420236,1742431838547,-500.0,0.00027829,2]
[356420237,1742431838556,-500.0,0.00027829,2]
[356420238,1742431838565,-500.0,0.00027829,2]
[356420239,1742431838575,-500.0,0.00027829,2]
[356420240,1742431838584,-1095.84,0.00027829,2]
[356420241,1742431838594,-500.0,0.00027829,2]
[356420242,1742431838604,-500.0,0.00027829,2]
[356420243,1742431838613,-500.0,0.00027829,2]
[356420244,1742431838624,-500.0,0.00027829,2]
[356420245,1742431838633,-1216.63,0.00027829,2]
[356420246,1742431838642,-500.0,0.00027829,2]
[356420247,1742431838651,-704.86,0.00027829,2]
[356420248,1742431838661,-645.99,0.00027829,2]
[356420249,1742431838670,-542.33,0.00027829,2]
[356420250,1742431838681,-500.0,0.00027829,2]
[356420251,1742431838693,-500.0,0.00027829,2]
[356420252,1742431838703,-500.0,0.00027829,2]
[356420253,1742431838712,-500.0,0.00027829,2]
[356420254,1742431838722,-500.0,0.00027829,2]
[356420255,1742431838734,-1493.1,0.00027829,2]
[356420256,1742431838744,-500.0,0.00027829,2]
[356420257,1742431838754,-1500.0,0.00027829,2]
[356420258,1742431838766,-500.0,0.00027829,2]
[356420259,1742431838776,-708.03,0.00027829,2]
[356420260,1742431838785,-500.0,0.00027829,2]
[356420261,1742431838795,-500.0,0.00027829,2]
[356420262,1742431838805,-674.83,0.00027829,2]
[356420263,1742431838814,-500.0,0.00027829,2]
[356420264,1742431838824,-1084.64,0.00027829,2]
[356420265,1742431838833,-536.43,0.00027829,2]
[356420266,1742431838843,-1085.06,0.00027829,2]
[356420267,1742431838853,-500.0,0.00027829,2]
[356420268,1742431838863,-500.0,0.00027829,2]
[356420269,1742431838872,-500.0,0.00027829,2]
[356420270,1742431838882,-500.0,0.00027829,2]
[356420271,1742431838892,-1051.13,0.00027829,2]
[356420272,1742431838903,-1199.44,0.00027829,2]
[356420273,1742431838913,-627.30607083,0.00027829,2]
[356420274,1742431838927,-189.65392917,0.00027829,2]
[356420275,1742431838937,-952.87,0.00027829,2]
[356420276,1742431838947,-500.0,0.00027829,2]
[356420277,1742431838956,-500.0,0.00027829,2]
[356420278,1742431838966,-500.0,0.00027829,2]
[356420279,1742431838975,-500.0,0.00027829,2]
[356420280,1742431838985,-500.0,0.00027829,2]
[356420281,1742431838994,-183.08606456,0.00027829,2]
[356420282,1742431839004,-500.0,0.00027829,2]
[356420283,1742431839014,-500.0,0.00027829,2]
[356420284,1742431839023,-675.46,0.00027829,2]
[356420285,1742431839033,-1075.61,0.00027829,2]
[356420286,1742431839043,-635.47,0.00027829,2]
[356420287,1742431839053,-500.0,0.00027829,2]
[356420288,1742431839063,-500.0,0.00027829,2]
[356420289,1742431839072,-500.0,0.00027829,2]
[356420290,1742431839081,-762.51,0.00027829,2]
[356420291,1742431839091,-500.0,0.00027829,2]
[356420292,1742431839101,-500.0,0.00027829,2]
[356420293,1742431839111,-500.0,0.00027829,2]
[356420294,1742431839120,-1118.78,0.00027829,2]
[356420295,1742431839130,-500.0,0.00027829,2]
[356420296,1742431839139,-500.0,0.00027829,2]
[356420297,1742431839149,-500.0,0.00027829,2]
[356420298,1742431839159,-500.0,0.00027829,2]
[356420299,1742431839168,-166.73932918,0.00027829,2]
[356420300,1742431839178,-500.0,0.00027829,2]
[356420301,1742431839188,-565.29,0.00027829,2]
[356420302,1742431839197,-500.0,0.00027829,2]
[356420303,1742431839206,-500.0,0.00027829,2]
[356420304,1742431839216,-500.0,0.00027829,2]
[356420305,1742431839225,-500.0,0.00027829,2]
[356420306,1742431839234,-934.62,0.00027829,2]
[356420307,1742431839244,-621.77,0.00027829,2]
[356420308,1742431839254,-783.35,0.00027829,2]
[356420309,1742431839263,-1083.45,0.00027829,2]
[356420310,1742431839273,-548.23,0.00027829,2]
[356420311,1742431839283,-63267.65863841,0.0002783,12]
[356420312,1742431839298,-197174.22688876,0.0002783,12]
[356420313,1742431839308,-500.0,0.0002783,2]
[356420314,1742431839317,-1178.31,0.0002783,2]
[356420315,1742431839327,-650.22,0.0002783,2]
[356420316,1742431839337,-968.19,0.0002783,2]
[356420317,1742431839346,-500.0,0.0002783,2]
[356420318,1742431839355,-500.0,0.0002783,2]
[356420319,1742431839365,-509.51,0.0002783,2]
[356420320,1742431839375,-500.0,0.0002783,2]
[356420321,1742431839384,-500.0,0.0002783,2]
[356420322,1742431839394,-500.0,0.0002783,2]
[356420323,1742431839404,-500.0,0.0002783,2]
[356420324,1742431839414,-500.0,0.0002783,2]
[356420325,1742431839424,-500.0,0.0002783,2]
[356420326,1742431839433,-500.0,0.0002783,2]
[356420327,1742431839442,-955.81,0.0002783,2]
[356420328,1742431839452,-500.0,0.0002783,2]
[356420329,1742431839462,-500.0,0.0002783,2]
[356420330,1742431839471,-500.0,0.0002783,2]
[356420331,1742431839480,-1268.91,0.0002783,2]
[356420332,1742431839489,-500.0,0.0002783,2]
[356420333,1742431839499,-500.0,0.0002783,2]
[356420334,1742431839509,-1354.86,0.0002783,2]
[356420335,1742431839518,-500.0,0.0002783,2]
[356420336,1742431839528,-516.54894574,0.0002783,2]
[356420337,1742431839537,-500.0,0.0002783,2]
[356420338,1742431839546,-500.0,0.0002783,2]
[356420339,1742431839556,-500.0,0.0002783,2]
[356420340,1742431839566,-547.09556447,0.0002783,2]
[356420341,1742431839575,-500.0,0.0002783,2]
[356420342,1742431839585,-500.0,0.0002783,2]
[356420343,1742431839594,-500.0,0.0002783,2]
[356420344,1742431839603,-500.0,0.0002783,2]
[356420345,1742431839612,-500.0,0.0002783,2]
[356420346,1742431839622,-338.59233121,0.0002783,2]
[356420347,1742431839632,-500.0,0.0002783,2]
[356420349,1742431839642,-702.67,0.0002783,2]
[356420351,1742431839653,-677.87,0.0002783,2]
[356420352,1742431839662,-500.0,0.0002783,2]
[356420353,1742431839671,-500.0,0.0002783,2]
[356420355,1742431839682,-500.0,0.0002783,2]
[356420357,1742431839695,-500.0,0.0002783,2]
[356420358,1742431839704,-500.0,0.0002783,2]
[356420360,1742431839713,-208.62024883,0.0002783,2]
[356420362,1742431839724,-500.0,0.0002783,2]
[356420363,1742431839734,-568.7,0.0002783,2]
[356420364,1742431839745,-512.5228673,0.0002783,2]
[356420365,1742431839755,-500.0,0.0002783,2]
[356420366,1742431839767,-500.0,0.0002783,2]
[356420367,1742431839776,-500.0,0.0002783,2]
[356420368,1742431839786,-500.0,0.0002783,2]
[356420369,1742431839795,-500.0,0.0002783,2]
[356420370,1742431839805,-500.0,0.0002783,2]
[356420371,1742431839814,-500.0,0.0002783,2]
[356420372,1742431839824,-500.0,0.0002783,2]
[356420373,1742431839834,-995.89,0.0002783,2]
[356420374,1742431839843,-500.0,0.0002783,2]
[356420375,1742431839852,-500.0,0.0002783,2]
[356420376,1742431839862,-500.0,0.0002783,2]
[356420377,1742431839871,-640.52,0.0002783,2]
[356420378,1742431839881,-500.0,0.0002783,2]
[356420379,1742431839890,-1028.82,0.0002783,2]
[356420380,1742431839901,-500.0,0.0002783,2]
[356420381,1742431839911,-500.0,0.0002783,2]
[356420382,1742431839920,-500.0,0.0002783,2]
[356420383,1742431839929,-349.74797749,0.0002783,2]
[356420384,1742431839938,-500.0,0.0002783,2]
[356420385,1742431839947,-500.0,0.0002783,2]
[356420386,1742431839956,-500.0,0.0002783,2]
[356420387,1742431839966,-500.0,0.0002783,2]
[356420388,1742431839976,-500.0,0.0002783,2]
[356420389,1742431839985,-500.0,0.0002783,2]
[356420390,1742431839995,-606.82,0.0002783,2]
[356420391,1742431840004,-500.0,0.0002783,2]
[356420392,1742431840014,-507.25939905,0.0002783,2]
[356420393,1742431840023,-500.0,0.0002783,2]
[356420394,1742431840033,-487.94024093,0.0002783,2]
[356420395,1742431840042,-500.0,0.0002783,2]
[356420396,1742431840051,-500.0,0.0002783,2]
[356420397,1742431840061,-500.0,0.0002783,2]
[356420398,1742431840070,-462.96255559,0.0002783,2]
[356420399,1742431840079,-516.65485237,0.0002783,2]
[356420400,1742431840089,-617.47,0.0002783,2]
[356420401,1742431840098,-500.0,0.0002783,2]
[356420402,1742431840107,-754.32,0.0002783,2]
[356420403,1742431840116,-500.0,0.0002783,2]
[356420404,1742431840126,-500.0,0.0002783,2]
[356420405,1742431840135,-693.56,0.0002783,30]
[356420406,1742431840145,-655.31,0.0002783,2]
[356420407,1742431840154,-500.0,0.0002783,2]
[356420408,1742431840164,-500.0,0.0002783,2]
[356420409,1742431840173,-500.0,0.0002783,2]
[356420410,1742431840183,-809.51,0.0002783,2]
[356420411,1742431840192,-500.0,0.0002783,2]
[356420412,1742431840202,-500.0,0.0002783,2]
[356420413,1742431840212,-500.0,0.0002783,2]
[356420414,1742431840221,-500.0,0.0002783,2]
[356420415,1742431840231,-500.0,0.0002783,2]
[356420416,1742431840242,-551.8,0.0002783,2]
[356420417,1742431840252,-500.0,0.0002783,2]
[356420418,1742431840261,-500.0,0.0002783,2]
[356420419,1742431840271,-500.0,0.0002783,2]
[356420420,1742431840280,-500.0,0.0002783,2]
[356420421,1742431840290,-500.0,0.0002783,2]
[356420422,1742431840300,-729.6,0.0002783,2]
[356420423,1742431840309,-500.0,0.0002783,2]
[356420424,1742431840318,-500.0,0.0002783,2]
[356420425,1742431840327,-500.0,0.0002783,2]
[356420426,1742431840337,-500.0,0.0002783,2]
[356420427,1742431840346,-1702.17,0.0002783,2]
[356420428,1742431840355,-534.67,0.0002783,2]
[356420429,1742431840365,-298.440976,0.0002783,2]
[356420430,1742431840374,-500.0,0.0002783,2]
[356420431,1742431840384,-500.0,0.0002783,2]
[356420432,1742431840393,-500.0,0.0002783,2]
[356420433,1742431840404,-500.0,0.0002783,2]
[356420434,1742431840414,-500.0,0.0002783,2]
[356420435,1742431840425,-500.0,0.0002783,2]
[356420436,1742431840435,-500.0,0.0002783,2]
[356420437,1742431840445,-500.0,0.0002783,2]
[356420438,1742431840455,-500.0,0.0002783,2]
[356420439,1742431840465,-500.0,0.0002783,2]
[356420440,1742431840474,-610.18,0.0002783,2]
[356420441,1742431840484,-500.0,0.0002783,2]
[356420442,1742431840493,-500.0,0.0002783,2]
[356420443,1742431840503,-500.0,0.0002783,2]
[356420444,1742431840512,-640.6,0.0002783,2]
[356420445,1742431840522,-500.0,0.0002783,2]
[356420446,1742431840531,-500.0,0.0002783,2]
[356420447,1742431840541,-500.0,0.0002783,2]
[356420448,1742431840551,-500.0,0.0002783,2]
[356420449,1742431840560,-500.0,0.0002783,2]
[356420450,1742431840569,-500.0,0.0002783,2]
[356420451,1742431840579,-556.86,0.0002783,2]
[356420452,1742431840589,-1305.28,0.0002783,2]
[356420453,1742431840599,-500.0,0.0002783,2]
[356420454,1742431840608,-632.93668573,0.0002783,2]
[356420455,1742431840617,-500.0,0.0002783,2]
[356420456,1742431840626,-820.96,0.0002783,2]
[356420457,1742431840636,-1843.49,0.0002783,2]
[356420458,1742431840645,-500.0,0.0002783,2]
[356420459,1742431840655,-500.0,0.0002783,2]
[356420460,1742431840664,-500.0,0.0002783,2]
[356420461,1742431840673,-728.41,0.0002783,2]
[356420462,1742431840687,-1055.42,0.0002783,2]
[356420463,1742431840696,-500.0,0.0002783,2]
[356420464,1742431840705,-500.0,0.0002783,2]
[356420465,1742431840715,-500.0,0.0002783,2]
[356420466,1742431840725,-500.0,0.0002783,2]
[356420467,1742431840735,-492.90669865,0.0002783,2]
[356420468,1742431840744,-500.0,0.0002783,2]
[356420469,1742431840756,-1103.87,0.0002783,2]
[356420470,1742431840765,-500.0,0.0002783,2]
[356420471,1742431840775,-521.59,0.0002783,2]
[356420472,1742431840784,-500.0,0.0002783,2]
[356420473,1742431840793,-500.0,0.0002783,2]
[356420474,1742431840802,-500.0,0.0002783,2]
[356420475,1742431840811,-500.0,0.0002783,2]
[356420476,1742431840821,-500.0,0.0002783,2]
[356420477,1742431840830,-500.0,0.0002783,2]
[356420478,1742431840839,-500.0,0.0002783,2]
[356420479,1742431840848,-500.0,0.0002783,2]
[356420480,1742431840858,-515.24,0.0002783,2]
[356420481,1742431840867,-500.0,0.0002783,2]
[356420482,1742431840876,-500.0,0.0002783,2]
[356420483,1742431840885,-500.0,0.0002783,2]
[356420484,1742431840895,-500.0,0.0002783,2]
[356420485,1742431840905,-1177.57,0.0002783,2]
[356420486,1742431840915,-500.0,0.0002783,2]
[356420487,1742431840925,-500.0,0.0002783,2]
[356420488,1742431840934,-1106.73,0.0002783,2]
[356420489,1742431840944,-500.0,0.0002783,2]
[356420490,1742431840953,-500.0,0.0002783,2]
[356420491,1742431840962,-500.0,0.0002783,2]
[356420492,1742431840971,-600.82,0.0002783,2]
[356420493,1742431840981,-500.0,0.0002783,2]
[356420494,1742431840990,-500.0,0.0002783,2]
[356420495,1742431840999,-500.0,0.0002783,2]
[356420496,1742431841009,-1034.1,0.0002783,2]
[356420497,1742431841018,-500.0,0.0002783,2]
[356420498,1742431841027,-500.0,0.0002783,2]
[356420499,1742431841037,-500.0,0.0002783,2]
[356420500,1742431841046,-500.0,0.0002783,2]
[356420501,1742431841056,-500.0,0.0002783,2]
[356420502,1742431841065,-500.0,0.0002783,2]
[356420503,1742431841074,-500.0,0.0002783,2]
[356420504,1742431841083,-500.0,0.0002783,2]
[356420505,1742431841092,-500.0,0.0002783,2]
[356420506,1742431841101,-500.0,0.0002783,2]
[356420507,1742431841110,-353.88988496,0.0002783,2]
[356420508,1742431841119,-500.0,0.0002783,2]
[356420509,1742431841129,-500.0,0.0002783,2]
[356420510,1742431841138,-896.89,0.0002783,2]
[356420511,1742431841148,-1438.58,0.0002783,2]
[356420512,1742431841157,-671.25,0.0002783,2]
[356420513,1742431841167,-1060.95,0.0002783,2]
[356420514,1742431841176,-606.03,0.0002783,2]
[356420515,1742431841185,-500.0,0.0002783,2]
[356420516,1742431841195,-819.87,0.0002783,2]
[356420517,1742431841204,-573.6,0.0002783,2]
[356420518,1742431841213,-946.23,0.0002783,2]
[356420519,1742431841223,-500.0,0.0002783,2]
[356420520,1742431841232,-629.44,0.0002783,2]
[356420521,1742431841242,-500.0,0.0002783,2]
[356420522,1742431841251,-575.73,0.0002783,2]
[356420523,1742431841260,-957.82,0.0002783,2]
[356420524,1742431841269,-500.0,0.0002783,2]
[356420525,1742431841279,-777.11,0.0002783,2]
[356420526,1742431841288,-503.25,0.0002783,2]
[356420527,1742431841298,-1459.99,0.0002783,2]
[356420528,1742431841308,-500.0,0.0002783,2]
[356420529,1742431841317,-500.0,0.0002783,2]
[356420530,1742431841327,-681.7,0.0002783,2]
[356420531,1742431841336,-655.92,0.0002783,2]
[356420532,1742431841346,-500.0,0.0002783,2]
[356420533,1742431841356,-500.0,0.0002783,2]
[356420534,1742431841365,-543.66,0.0002783,2]
[356420535,1742431841375,-500.0,0.0002783,2]
[356420536,1742431841384,-1693.47,0.0002783,2]
[356420537,1742431841394,-500.0,0.0002783,2]
[356420538,1742431841404,-710.32,0.0002783,2]
[356420539,1742431841414,-675.91,0.0002783,2]
[356420540,1742431841424,-500.0,0.0002783,2]
[356420541,1742431841434,-838.62,0.0002783,2]
[356420542,1742431841443,-500.0,0.0002783,2]
[356420543,1742431841453,-515.51,0.0002783,2]
[356420544,1742431841462,-500.0,0.0002783,2]
[356420545,1742431841471,-500.0,0.0002783,2]
[356420546,1742431841481,-500.0,0.0002783,2]
[356420547,1742431841490,-663.67,0.0002783,2]
[356420548,1742431841499,-970.24,0.0002783,2]
[356420549,1742431841509,-500.0,0.0002783,2]
[356420550,1742431841518,-964.08,0.0002783,2]
[356420551,1742431841528,-695.35,0.0002783,2]
[356420552,1742431841538,-894.43,0.0002783,2]
[356420553,1742431841547,-500.0,0.0002783,2]
[356420554,1742431841557,-500.0,0.0002783,2]
[356420555,1742431841566,-500.0,0.0002783,2]
[356420556,1742431841575,-892.5,0.0002783,2]
[356420557,1742431841585,-1157.09,0.0002783,2]
[356420558,1742431841594,-579.87,0.0002783,2]
[356420559,1742431841603,-687.7,0.0002783,2]
[356420560,1742431841613,-500.0,0.0002783,2]
[356420561,1742431841622,-500.0,0.0002783,2]
[356420562,1742431841632,-1004.06,0.0002783,2]
[356420563,1742431841641,-505.91,0.0002783,2]
[356420564,1742431841651,-1180.65,0.0002783,2]
[356420565,1742431841661,-500.0,0.0002783,2]
[356420566,1742431841670,-694.32,0.0002783,2]
[356420567,1742431841680,-561.03,0.0002783,2]
[356420568,1742431841694,-500.0,0.0002783,120]
[356420569,1742431841703,-500.0,0.0002783,2]
[356420570,1742431841713,-500.0,0.0002783,2]
[356420571,1742431841723,-680.62,0.0002783,2]
[356420572,1742431841734,-528.98,0.0002783,2]
[356420573,1742431841744,-300.0,0.0002783,2]
[356420574,1742431841754,-1514.06,0.0002783,2]
[356420575,1742431841767,-500.0,0.0002783,2]
[356420576,1742431841777,-500.0,0.0002783,2]
[356420577,1742431841788,-500.0,0.0002783,2]
[356420578,1742431841798,-500.0,0.0002783,2]
[356420579,1742431841807,-500.0,0.0002783,2]
[356420580,1742431841817,-500.0,0.0002783,2]
[356420581,1742431841827,-589.35,0.0002783,2]
[356420582,1742431841838,-558.48,0.0002783,2]
[356420583,1742431841848,-536.42,0.0002783,2]
[356420584,1742431841859,-500.0,0.0002783,2]
[356420585,1742431841869,-500.0,0.0002783,2]
[356420586,1742431841879,-500.0,0.0002783,2]
[356420587,1742431841890,-500.0,0.0002783,2]
[356420588,1742431841900,-500.0,0.0002783,2]
[356420589,1742431841913,-516.21,0.0002783,2]
[356420590,1742431841922,-500.0,0.0002783,2]
[356420591,1742431841932,-609.78,0.0002783,2]
[356420592,1742431841942,-1337.97,0.0002783,2]
[356420593,1742431841952,-500.0,0.0002783,2]
[356420594,1742431841961,-746.35,0.0002783,2]
[356420595,1742431841971,-500.0,0.0002783,2]
[356420596,1742431841982,-500.0,0.0002783,2]
[356420597,1742431841992,-547.02,0.0002783,2]
[356420598,1742431842002,-500.0,0.0002783,2]
[356420599,1742431842011,-500.0,0.0002783,2]
[356420600,1742431842022,-678.77,0.0002783,2]
[356420601,1742431842033,-500.0,0.0002783,2]
[356420602,1742431842043,-500.0,0.0002783,2]
[356420603,1742431842054,-1350.53,0.0002783,2]
[356420604,1742431842066,-894.87,0.0002783,2]
[356420605,1742431842077,-500.0,0.0002783,2]
[356420606,1742431842088,-500.0,0.0002783,2]
[356420607,1742431842099,-500.0,0.0002783,2]
[356420608,1742431842111,-500.0,0.0002783,2]
[356420609,1742431842123,-500.0,0.0002783,2]
[356420610,1742431842134,-500.0,0.0002783,2]
[356420611,1742431842145,-500.0,0.0002783,2]
[356420612,1742431842159,-655.95,0.0002783,2]
[356420613,1742431842171,-500.0,0.0002783,2]
[356420614,1742431842182,-500.0,0.0002783,2]
[356420615,1742431842192,-500.0,0.0002783,2]
[356420616,1742431842204,-500.0,0.0002783,2]
[356420617,1742431842215,-500.0,0.0002783,2]
[356420618,1742431842225,-500.0,0.0002783,2]
[356420619,1742431842235,-1350.24,0.0002783,2]
[356420620,1742431842246,-526.86,0.0002783,2]
[356420621,1742431842257,-500.0,0.0002783,2]
[356420622,1742431842267,-500.0,0.0002783,2]
[356420623,1742431842278,-500.0,0.0002783,2]
[356420624,1742431842289,-500.0,0.0002783,2]
[356420625,1742431842299,-647.51,0.0002783,2]
[356420626,1742431842309,-500.0,0.0002783,2]
[356420627,1742431842319,-500.0,0.0002783,2]
[356420628,1742431842330,-500.0,0.0002783,2]
[356420629,1742431842340,-1077.32,0.0002783,2]
[356420630,1742431842356,-740.28,0.0002783,2]
[356420631,1742431842366,-869.02,0.0002783,2]
[356420632,1742431842377,-500.0,0.0002783,2]
[356420633,1742431842387,-500.0,0.0002783,2]
[356420634,1742431842399,-500.0,0.0002783,2]
[356420635,1742431842410,-500.0,0.0002783,2]
[356420636,1742431842420,-500.0,0.0002783,2]
[356420637,1742431842430,-500.0,0.0002783,2]
[356420638,1742431842440,-513.3584485,0.0002783,2]
[356420639,1742431842450,-500.0,0.0002783,2]
[356420640,1742431842461,-1013.24,0.0002783,2]
[356420641,1742431842472,-500.0,0.0002783,2]
[356420642,1742431842482,-500.0,0.0002783,2]
[356420644,1742431842493,-634.65,0.0002783,2]
[356420646,1742431842503,-500.0,0.0002783,2]
[356420648,1742431842514,-500.0,0.0002783,2]
[356420649,1742431842525,-500.0,0.0002783,2]
[356420650,1742431842535,-500.0,0.0002783,2]
[356420652,1742431842546,-500.0,0.0002783,2]
[356420654,1742431842556,-500.0,0.0002783,2]
[356420655,1742431842567,-500.0,0.0002783,2]
[356420656,1742431842577,-500.0,0.0002783,2]
[356420657,1742431842587,-500.0,0.0002783,2]
[356420658,1742431842598,-500.0,0.0002783,2]
[356420659,1742431842610,-500.0,0.0002783,2]
[356420660,1742431842621,-500.0,0.0002783,2]